fUST/lending_fUST_20250806
["ID","MTS","AMOUNT","RATE_DAILY","PERIOD"]
[377697630,1754494263793,-3869.36,0.00032162,120]
[377697631,1754494263804,-2931.08,0.00032162,120]
[377697632,1754494263814,-3869.36,0.00032162,120]
[377697633,1754494263824,-3869.36,0.00032162,120]
[377697634,1754494263836,-2931.08,0.00032162,120]
[377697635,1754494263846,-3869.36,0.00032162,120]
[377697636,1754494263857,-2931.08,0.00032162,120]
[377697637,1754494263867,-3869.36,0.00032162,120]
[377697638,1754494263877,-3869.36,0.00032162,120]
[377697639,1754494263887,-3869.36,0.00032162,120]
[377697640,1754494263898,-2931.08,0.00032162,120]
[377697641,1754494263909,-3869.36,0.00032162,120]
[377697642,1754494263919,-3869.36,0.00032162,120]
[377697643,1754494263930,-2931.08,0.00032162,120]
[377697644,1754494263941,-3869.36,0.00032162,120]
[377697645,1754494263951,-3869.36,0.00032162,120]
[377697646,1754494263961,-3869.36,0.00032162,120]
[377697647,1754494263971,-460.0,0.00032162,120]
[377697648,1754494263981,-3869.36,0.00032162,120]
[377697649,1754494263991,-460.0,0.00032162,120]
[377697650,1754494264002,-3869.36,0.00032162,120]
[377697651,1754494264015,-203.75,0.00032162,120]
[377697652,1754494264025,-3869.36,0.00032162,120]
[377697653,1754494264035,-3869.36,0.00032162,120]
[377697654,1754494264046,-2557.66,0.00032162,120]
[377697655,1754494264057,-2931.08,0.00032162,120]
[377697656,1754494264068,-3869.36,0.00032162,120]
[377697657,1754494264078,-2557.66,0.00032162,120]
[377697658,1754494264091,-3869.36,0.00032162,120]
[377697659,1754494264101,-2557.66,0.00032162,120]
[377697660,1754494264112,-3869.52362799,0.00032162,120]
[377697661,1754494264122,-2931.08,0.00032162,120]
[377697662,1754494264132,-2557.66,0.00032162,120]
[377697663,1754494264142,-460.0,0.00032162,120]
[377697664,1754494264152,-2557.66,0.00032162,120]
[377697665,1754494264163,-2931.08,0.00032162,120]
[377697666,1754494264173,-460.0,0.00032162,120]
[377697667,1754494264183,-2557.66,0.00032162,120]
[377697668,1754494264193,-460.0,0.00032162,120]
[377697669,1754494264203,-2557.66,0.00032162,120]
[377697670,1754494264213,-460.0,0.00032162,120]
[377697671,1754494264223,-2557.66,0.00032162,120]
[377697672,1754494264232,-460.0,0.00032162,120]
[377697673,1754494264242,-2557.66,0.00032162,120]
[377697674,1754494264252,-2557.66,0.00032162,120]
[377697675,1754494264267,-460.0,0.00032162,120]
[377697676,1754494264284,-10868.4,0.00032162,120]
[377697677,1754494264300,-2557.66,0.00032162,120]
[377697678,1754494264315,-460.0,0.00032162,120]
[377697679,1754494264327,-2557.66,0.00032162,120]
[377697680,1754494264342,-10868.4,0.00032162,120]
[377697681,1754494264356,-460.0,0.00032162,120]
[377697682,1754494264370,-460.0,0.00032162,120]
[377697683,1754494264384,-2557.66,0.00032162,120]
[377697684,1754494264397,-10868.4,0.00032162,120]
[377697685,1754494264411,-298.59030879,0.00032162,120]
[377697686,1754494264425,-2557.66,0.00032162,120]
[377697687,1754494264440,-2557.66,0.00032162,120]
[377697688,1754494264453,-2557.66,0.00032162,120]
[377697689,1754494264467,-2557.66,0.00032162,120]
[377697690,1754494264482,-460.0,0.00032162,120]
[377697691,1754494264493,-10868.4,0.00032162,120]
[377697692,1754494264506,-2557.66,0.00032162,120]
[377697693,1754494264521,-460.0,0.00032162,120]
[377697694,1754494264534,-460.0,0.00032162,120]
[377697695,1754494264547,-460.0,0.00032162,120]
[377697696,1754494264560,-460.0,0.00032162,120]
[377697697,1754494264573,-460.0,0.00032162,120]
[377697698,1754494264586,-10868.4,0.00032162,120]
[377697699,1754494264597,-2557.66,0.00032162,120]
[377697700,1754494264608,-460.0,0.00032162,120]
[377697701,1754494264620,-460.0,0.00032162,120]
[377697702,1754494264642,-460.0,0.00032162,120]
[377697703,1754494264660,-2557.66,0.00032162,120]
[377697704,1754494264678,-460.0,0.00032162,120]
[377697705,1754494264694,-460.0,0.00032162,120]
[377697706,1754494264710,-460.0,0.00032162,120]
[377697707,1754494264725,-2557.66,0.00032162,120]
[377697708,1754494264741,-10868.4,0.00032162,120]
[377697709,1754494264757,-460.0,0.00032162,120]
[377697710,1754494264772,-2557.66,0.00032162,120]
[377697711,1754494264787,-460.0,0.00032162,120]
[377697712,1754494264799,-2557.66,0.00032162,120]
[377697713,1754494264811,-460.0,0.00032162,120]
[377697714,1754494264823,-2557.81,0.00032162,120]
[377697715,1754494264837,-228.1426393,0.00032162,120]
[377697716,1754494264852,-10868.4,0.00032162,120]
[377697717,1754494264867,-3913.90719934,0.00032162,120]
[377697718,1754494316413,150.0,0.00024315,2]
[377697719,1754494337422,159.98724607,0.00024899,2]
[377697720,1754494451722,150.0,0.00024206,2]
[377697721,1754494526382,244.59388669,0.00024239,2]
[377697722,1754494589437,14356.56218327,0.00023986,2]
[377697723,1754494589467,10543.43781673,0.00023986,2]
[377697725,1754494981584,228.751878,0.00023953,2]
[377697726,1754495007679,274.616445,0.00023953,2]
[377697728,1754495061677,1810.29268859,0.00024772,2]
[377697729,1754495079188,1536.51,0.00030137,120]
[377697730,1754495161405,-299.57794411,0.00024873,2]
[377697731,1754495161430,-168.16503093,0.00024899,2]
[377697732,1754495161454,-1648.63611087,0.000249,2]
[377697733,1754495164985,150.0,0.00024013,2]
[377697734,1754495183975,2156.74167444,0.000228,2]
[377697735,1754495206988,4836.15949724,0.00023952,2]
[377697736,1754495207011,5163.84050276,0.00023952,2]
[377697737,1754495212692,1765.79273344,0.0002477,2]
[377697738,1754495229107,-159.98724607,0.000248,2]
[377697739,1754495229129,-3029.21081951,0.00024871,2]
[377697740,1754495229151,-11.65426444,0.00024898,2]
[377697741,1754495232098,-148.33298163,0.00024898,2]
[377697742,1754495232120,-108.24288913,0.000249,2]
[377697743,1754495232142,-515.0,0.00024969,2]
[377697744,1754495232164,-300.0,0.00024969,2]
[377697745,1754495232186,-500.0,0.0002497,2]
[377697746,1754495232207,-500.0,0.0002497,2]
[377697747,1754495232227,-500.0,0.0002497,2]
[377697748,1754495232249,-500.0,0.0002497,2]
[377697749,1754495232270,-500.0,0.0002497,2]
[377697750,1754495232290,-500.0,0.0002497,2]
[377697751,1754495232314,-230.74393968,0.0002497,2]
[377697752,1754495232340,-500.0,0.0002497,2]
[377697753,1754495232361,-500.0,0.0002497,2]
[377697754,1754495232383,-522.09888231,0.0002497,2]
[377697755,1754495232405,-345.26132681,0.0002497,2]
[377697756,1754495232427,-500.0,0.0002497,2]
[377697757,1754495232448,-500.0,0.0002497,2]
[377697758,1754495232469,-500.0,0.0002497,2]
[377697759,1754495232490,-54.0396119,0.0002497,2]
[377697760,1754495238189,164.11298,0.00013699,2]
[377697761,1754495238393,164.11298,0.00023182,2]
[377697763,1754495247139,-445.9603881,0.0002497,2]
[377697764,1754495247163,-500.0,0.0002497,2]
[377697765,1754495247186,-500.0,0.0002497,2]
[377697766,1754495247208,-500.0,0.0002497,2]
[377697767,1754495247230,-500.0,0.0002497,2]
[377697768,1754495247251,-500.0,0.0002497,2]
[377697769,1754495247271,-649.46993546,0.0002497,2]
[377697770,1754495247294,-500.0,0.0002497,2]
[377697771,1754495247324,-500.0,0.0002497,2]
[377697772,1754495247349,-500.0,0.0002497,2]
[377697773,1754495247370,-500.0,0.0002497,2]
[377697774,1754495247393,-214.70646021,0.0002497,2]
[377697775,1754495258822,893.2480233,0.00023989,2]
[377697776,1754495265840,810.00000001,0.00030137,120]
[377697777,1754495303974,171.88739726,0.00030136,120]
[377697778,1754495360748,271.29632726,0.00024769,2]
[377697779,1754495360790,1773.02979022,0.00024769,2]
[377697780,1754495366601,-165.95780041,0.00024869,2]
[377697781,1754495366623,-98.8563551,0.00024898,2]
[377697844,1754495432879,-645.57075375,0.00024868,2]
[377697845,1754495432891,-2004.98871333,0.00024868,2]
[377697846,1754495432901,-166.76651104,0.00024898,2]
[377697847,1754495432910,-160.0,0.000249,2]
[377697848,1754495432919,-500.0,0.00024968,2]
[377697850,1754495432929,-500.0,0.00024968,2]
[377697851,1754495432939,-500.0,0.00024968,2]
[377697852,1754495432948,-500.0,0.00024968,2]
[377697853,1754495432958,-500.0,0.00024968,2]
[377697854,1754495432967,-33.98558566,0.00024968,2]
[377697867,1754495438697,-466.01441434,0.00024968,2]
[377697868,1754495438706,-120.88032856,0.00024968,2]
[377697869,1754495438763,-379.11967144,0.00024968,2]
[377697870,1754495438772,-500.0,0.00024968,2]
[377697871,1754495438781,-500.0,0.00024968,2]
[377697872,1754495438791,-500.0,0.00024968,2]
[377697873,1754495438801,-500.0,0.00024968,2]
[377697874,1754495438810,-500.0,0.00024968,2]
[377697875,1754495438820,-350.06489013,0.00024968,2]
[377697876,1754495438830,-500.0,0.00024968,2]
[377697877,1754495438842,-500.0,0.00024968,2]
[377697878,1754495438852,-500.0,0.00024968,2]
[377697879,1754495438862,-500.0,0.00024968,2]
[377697880,1754495438872,-500.0,0.00024968,2]
[377697881,1754495438882,-500.0,0.00024968,2]
[377697882,1754495438892,-500.0,0.00024968,2]
[377697883,1754495438902,-500.0,0.00024968,2]
[377697884,1754495438912,-500.0,0.00024968,2]
[377697885,1754495438921,-500.0,0.00024968,2]
[377697886,1754495438931,-290.76084494,0.00024968,2]
[377697887,1754495438942,-500.0,0.00024968,2]
[377697888,1754495438952,-500.0,0.00024968,2]
[377697889,1754495438962,-500.0,0.00024968,2]
[377697890,1754495438972,-500.0,0.00024968,2]
[377697891,1754495438982,-500.0,0.00024968,2]
[377697892,1754495438992,-500.0,0.00024968,2]
[377697893,1754495439003,-500.0,0.00024968,2]
[377697894,1754495439013,-500.0,0.00024968,2]
[377697895,1754495439023,-500.0,0.00024968,2]
[377697896,1754495439033,-500.0,0.00024968,2]
[377697897,1754495439043,-500.0,0.00024968,2]
[377697898,1754495439053,-226.46652015,0.00024968,2]
[377697899,1754495439063,-500.0,0.00024968,2]
[377697900,1754495439072,-500.0,0.00024968,2]
[377697901,1754495439082,-194.91525336,0.00024968,2]
[377697902,1754495439091,-500.0,0.00024968,2]
[377697903,1754495439102,-500.0,0.00024968,2]
[377697904,1754495439112,-500.0,0.00024968,2]
[377697905,1754495439121,-500.0,0.00024968,2]
[377697906,1754495439131,-500.0,0.00024968,2]
[377697907,1754495439140,-500.0,0.00024968,2]
[377697908,1754495439153,-500.0,0.00024968,2]
[377697909,1754495439164,-500.0,0.00024968,2]
[377697910,1754495439173,-500.0,0.00024968,2]
[377697911,1754495439183,-500.0,0.00024968,2]
[377697912,1754495439192,-500.0,0.00024968,2]
[377697913,1754495439201,-500.0,0.00024968,2]
[377697914,1754495439211,-500.0,0.00024968,2]
[377697915,1754495439220,-500.0,0.00024968,2]
[377697916,1754495439230,-500.0,0.00024968,2]
[377697917,1754495439239,-500.0,0.00024968,2]
[377697918,1754495439249,-500.0,0.00024968,2]
[377697919,1754495439258,-500.0,0.00024968,2]
[377697920,1754495439268,-500.0,0.00024968,2]
[377697921,1754495439278,-500.0,0.00024968,2]
[377697922,1754495439287,-500.0,0.00024968,2]
[377697923,1754495439297,-500.0,0.00024968,2]
[377697924,1754495439306,-500.0,0.00024968,2]
[377697925,1754495439316,-500.0,0.00024968,2]
[377697926,1754495439325,-500.0,0.00024968,2]
[377697927,1754495439335,-500.0,0.00024968,2]
[377697928,1754495439350,-500.0,0.00024968,2]
[377697929,1754495439361,-500.0,0.00024968,2]
[377697930,1754495439371,-157.37608488,0.00024968,2]
[377697931,1754495439381,-500.0,0.00024968,2]
[377697932,1754495439391,-300.0,0.00024968,2]
[377697933,1754495439401,-1200.0,0.00024968,2]
[377697934,1754495439411,-300.0,0.00024968,2]
[377697935,1754495439420,-300.0,0.00024968,2]
[377697936,1754495439430,-300.0,0.00024968,2]
[377697937,1754495439440,-344.15930133,0.00024973,2]
[377697938,1754495439449,-500.0,0.00024973,2]
[377697940,1754495439459,-500.0,0.00024973,2]
[377697941,1754495439469,-464.70511731,0.00024973,2]
[377697942,1754495439479,-646.26358049,0.00024973,2]
[377697943,1754495439488,-500.0,0.00024973,2]
[377697944,1754495439498,-300.13920376,0.00024973,2]
[377697945,1754495439507,-500.0,0.00024973,2]
[377697946,1754495439517,-500.0,0.00024973,2]
[377697947,1754495439526,-500.0,0.00024973,2]
[377697948,1754495439536,-397.69513285,0.00024973,2]
[377697949,1754495439546,-500.0,0.00024973,2]
[377697950,1754495439556,-500.0,0.00024973,2]
[377697951,1754495439565,-500.0,0.00024973,2]
[377697952,1754495439575,-500.0,0.00024973,2]
[377697953,1754495439584,-502.29650842,0.00024973,2]
[377697954,1754495439594,-500.0,0.00024973,2]
[377697955,1754495439605,-200.46251314,0.00024973,2]
[377697956,1754495439615,-502.94869412,0.00024973,2]
[377697957,1754495439624,-555.54318028,0.00024973,2]
[377697958,1754495439633,-500.0,0.00024989,2]
[377697959,1754495439644,-160.0,0.00024998,2]
[377697961,1754495439654,-166.76651103,0.00025073,2]
[377697962,1754495439663,-4283.00376077,0.00025248,2]
[377697963,1754495439672,-6002.22033807,0.00025248,2]
[377697964,1754495439682,-298.52,0.00025338,10]
[377697965,1754495439692,-509.04,0.00025339,3]
[377697966,1754495439702,-254.52,0.00025339,3]
[377697967,1754495439711,-763.61,0.00025339,3]
[377697968,1754495439721,-366.26810226,0.00025348,2]
[377697969,1754495439730,-38205.00390034,0.00025349,2]
[377697970,1754495439743,-260642.82389466,0.00025349,2]
[377697971,1754495439752,-9023.64185268,0.00025349,2]
[377697972,1754495439764,-370000.0,0.00025359,2]
[377697973,1754495439774,-503.52959917,0.00025373,2]
[377697974,1754495439783,-500.0,0.00025373,2]
[377697975,1754495439793,-300.0,0.00025373,2]
[377697976,1754495439802,-637.43097419,0.00025373,2]
[377697977,1754495439812,-306.79758938,0.00025373,2]
[377697978,1754495439822,-500.0,0.00025373,2]
[377697979,1754495439832,-500.0,0.00025373,2]
[377697980,1754495439841,-500.0,0.00025373,2]
[377697982,1754495439851,-500.0,0.00025373,2]
[377697984,1754495439861,-500.0,0.00025373,2]
[377697986,1754495439871,-500.0,0.00025373,2]
[377697988,1754495439881,-500.0,0.00025373,2]
[377697989,1754495439891,-502.77488832,0.00025373,2]
[377697991,1754495439900,-500.0,0.00025373,2]
[377697992,1754495439911,-500.0,0.00025373,2]
[377697993,1754495439921,-500.0,0.00025373,2]
[377697994,1754495439930,-500.0,0.00025373,2]
[377697995,1754495439940,-500.0,0.00025373,2]
[377697996,1754495439950,-500.0,0.00025373,2]
[377697997,1754495439959,-500.0,0.00025373,2]
[377697998,1754495439969,-500.0,0.00025373,2]
[377697999,1754495439978,-500.0,0.00025373,2]
[377698000,1754495439989,-154.01593757,0.00025373,2]
[377698001,1754495439998,-500.0,0.00025373,2]
[377698002,1754495440008,-504.54503008,0.00025373,2]
[377698003,1754495440017,-500.0,0.00025373,2]
[377698004,1754495440027,-526.96917457,0.00025373,2]
[377698006,1754495440036,-260.0,0.00025448,2]
[377698007,1754495440046,-505.33412706,0.00025521,2]
[377698008,1754495440056,-500.0,0.00025521,2]
[377698009,1754495440066,-201.288722,0.00025521,2]
[377698010,1754495440076,-1000.0,0.00025521,2]
[377698011,1754495440087,-1000.0,0.00025521,2]
[377698012,1754495440097,-1289.09169324,0.00025567,2]
[377698013,1754495440107,-1600.0500841,0.00025577,2]
[377698014,1754495440117,-266.51366233,0.00025662,2]
[377698015,1754495440127,-2044.32611734,0.00025739,4]
[377698016,1754495440136,-1000.0,0.00025921,2]
[377698017,1754495440146,-1000.0,0.00025921,2]
[377698018,1754495440155,-501.33701781,0.00025921,2]
[377698019,1754495440166,-1000.0,0.00025921,2]
[377698020,1754495440175,-1000.0,0.00025921,2]
[377698021,1754495440184,-2578.18338648,0.0002598,2]
[377698022,1754495440194,-93652.1216893,0.0002599,2]
[377698023,1754495440204,-360.0,0.00025996,2]
[377698024,1754495440213,-1500.0,0.00026068,2]
[377698026,1754495440223,-1481.51330471,0.00026068,2]
[377698028,1754495440232,-367.045,0.00026372,13]
[377698030,1754495440242,-1500.0,0.00026468,2]
[377698031,1754495440251,-1500.0,0.00026468,2]
[377698032,1754495440261,-1500.0,0.00026468,2]
[377698033,1754495440270,-1500.0,0.00026468,2]
[377698034,1754495440280,-460.0,0.00026544,2]
[377698035,1754495440290,-2000.0,0.00026616,2]
[377698036,1754495440300,-2044.32611734,0.00026709,6]
[377698037,1754495440310,-1018.08,0.00026709,3]
[377698038,1754495440319,-509.04,0.00026709,3]
[377698039,1754495440328,-160.0,0.00026777,2]
[377698040,1754495440338,-12657.93264304,0.00026782,2]
[377698041,1754495440347,-160.0,0.00026782,2]
[377698042,1754495440359,-160.0,0.00026782,2]
[377698043,1754495440369,-160.0,0.00026782,2]
[377698044,1754495440379,-6002.22033806,0.00026886,2]
[377698045,1754495440388,-2650.55946707,0.00027015,2]
[377698046,1754495440398,-2000.0,0.00027016,2]
[377698047,1754495440409,-2000.0,0.00027016,2]
[377698048,1754495440419,-2000.0,0.00027016,2]
[377698049,1754495440430,-200.0,0.00027049,2]
[377698050,1754495440440,-420.0,0.00027049,2]
[377698051,1754495440450,-420.0,0.00027049,2]
[377698052,1754495440460,-400.0,0.00027049,2]
[377698053,1754495440470,-161.225328,0.00027071,2]
[377698054,1754495440480,-560.0,0.00027092,2]
[377698055,1754495440489,-1500.0,0.00027164,2]
[377698056,1754495440501,-1680.0,0.00027172,2]
[377698057,1754495440511,-565.34424483,0.00027397,5]
[377698058,1754495440521,-1223.24,0.000274,7]
[377698059,1754495440532,-5051.99,0.000274,7]
[377698060,1754495440545,-1981.34,0.000274,7]
[377698061,1754495440556,-2278.88,0.000274,2]
[377698062,1754495440566,-200.0,0.00027465,15]
[377698063,1754495440577,-300.0,0.00027465,15]
[377698064,1754495440588,-2412.49617764,0.00027564,5]
[377698065,1754495440597,-2500.0,0.00027564,5]
[377698066,1754495440607,-2500.0,0.00027564,5]
[377698067,1754495440617,-600.0,0.00027583,2]
[377698068,1754495440627,-600.0,0.00027583,2]
[377698069,1754495440637,-600.0,0.00027583,2]
[377698070,1754495440647,-162.45,0.00027583,2]
[377698071,1754495440657,-161.225328,0.00027628,2]
[377698072,1754495440666,-157.619808,0.00027628,2]
[377698073,1754495440676,-156.480839,0.00027628,2]
[377698074,1754495440686,-162.123231,0.00027628,2]
[377698075,1754495440696,-660.0,0.0002764,2]
[377698076,1754495440706,-2044.32611734,0.00027679,8]
[377698077,1754495440716,-2156.74167444,0.000278,2]
[377698078,1754495440725,-3000.0,0.00028112,5]
[377698079,1754495440735,-3000.0,0.00028112,5]
[377698080,1754495440745,-760.0,0.00028188,2]
[377698081,1754495440754,-6002.22033806,0.00028524,2]
[377698082,1754495440765,-151.0,0.000286,17]
[377698083,1754495440775,-2044.32611734,0.00028649,10]
[377698084,1754495440785,-4283.00376077,0.00028655,2]
[377698085,1754495440795,-3500.0,0.0002866,5]
[377698086,1754495440805,-3500.0,0.0002866,5]
[377698087,1754495440815,-860.0,0.00028736,2]
[377698088,1754495440825,-2650.55946707,0.00029163,2]
[377698089,1754495440838,-1289.09169324,0.00029163,2]
[377698090,1754495440848,-151.0,0.00029173,2]
[377698091,1754495440859,-300.0,0.00029173,2]
[377698092,1754495440869,-151.0,0.00029173,2]
[377698093,1754495440879,-22188.54324152,0.00029173,2]
[377698094,1754495440888,-300.0,0.00029173,2]
[377698095,1754495440898,-250.0,0.00029173,2]
[377698096,1754495440909,-151.0,0.00029173,2]
[377698097,1754495440918,-300.0,0.00029173,2]
[377698098,1754495440928,-250.0,0.00029173,2]
[377698099,1754495440938,-151.0,0.00029173,2]
[377698100,1754495440948,-2183.31810187,0.00029173,2]
[377698101,1754495440958,-300.0,0.00029173,2]
[377698102,1754495440967,-250.0,0.00029173,2]
[377698103,1754495440977,-151.0,0.00029173,2]
[377698104,1754495440987,-300.0,0.00029173,2]
[377698105,1754495440997,-151.0,0.00029173,2]
[377698106,1754495441007,-250.0,0.00029173,2]
[377698107,1754495441017,-300.0,0.00029173,2]
[377698108,1754495441027,-151.0,0.00029173,2]
[377698109,1754495441037,-250.0,0.00029173,2]
[377698110,1754495441046,-300.0,0.00029173,2]
[377698111,1754495441056,-250.0,0.00029173,2]
[377698112,1754495441066,-151.0,0.00029173,2]
[377698113,1754495441075,-151.0,0.00029173,2]
[377698114,1754495441085,-300.0,0.00029173,2]
[377698115,1754495441095,-151.0,0.00029173,2]
[377698116,1754495441106,-250.0,0.00029173,2]
[377698117,1754495441116,-151.0,0.00029173,2]
[377698118,1754495441125,-300.0,0.00029173,2]
[377698119,1754495441135,-151.0,0.00029173,2]
[377698120,1754495441148,-250.0,0.00029173,2]
[377698121,1754495441157,-151.0,0.00029173,2]
[377698122,1754495441167,-300.0,0.00029173,2]
[377698123,1754495441177,-151.0,0.00029173,2]
[377698124,1754495441186,-250.0,0.00029173,2]
[377698125,1754495441196,-278.72920567,0.00029173,2]
[377698126,1754495441205,-300.0,0.00029173,2]
[377698127,1754495441215,-151.0,0.00029173,2]
[377698128,1754495441225,-370.81086346,0.00029173,2]
[377698129,1754495441235,-151.0,0.00029173,2]
[377698130,1754495441244,-151.0,0.00029173,2]
[377698131,1754495441254,-300.0,0.00029173,2]
[377698132,1754495441264,-151.0,0.00029173,2]
[377698133,1754495441274,-300.0,0.00029173,2]
[377698134,1754495441284,-151.0,0.00029173,2]
[377698135,1754495441293,-300.0,0.00029173,2]
[377698136,1754495441303,-151.0,0.00029173,2]
[377698137,1754495441312,-300.0,0.00029173,2]
[377698138,1754495441322,-151.0,0.00029173,2]
[377698139,1754495441331,-300.0,0.00029173,2]
[377698140,1754495441341,-151.0,0.00029173,2]
[377698141,1754495441352,-151.0,0.00029173,2]
[377698142,1754495441365,-300.0,0.00029173,2]
[377698143,1754495441375,-151.0,0.00029173,2]
[377698144,1754495441384,-300.0,0.00029173,2]
[377698145,1754495441394,-151.0,0.00029173,2]
[377698146,1754495441405,-300.0,0.00029173,2]
[377698147,1754495441415,-151.0,0.00029173,2]
[377698148,1754495441425,-300.0,0.00029173,2]
[377698149,1754495441437,-151.0,0.00029173,2]
[377698150,1754495441448,-360.04966484,0.00029173,2]
[377698151,1754495441458,-151.0,0.00029173,2]
[377698152,1754495441468,-151.0,0.00029173,2]
[377698153,1754495441477,-151.0,0.00029173,2]
[377698154,1754495441487,-151.0,0.00029173,2]
[377698155,1754495441497,-151.0,0.00029173,2]
[377698156,1754495441506,-151.0,0.00029173,2]
[377698157,1754495441516,-151.0,0.00029173,2]
[377698158,1754495441526,-151.0,0.00029173,2]
[377698159,1754495441535,-4000.0,0.00029208,5]
[377698160,1754495441545,-4000.0,0.00029208,5]
[377698161,1754495441554,-829.77291841,0.00029228,2]
[377698162,1754495441564,-960.0,0.00029284,2]
[377698163,1754495441575,-151.0,0.000293,10]
[377698164,1754495441584,-587.0,0.00029304,2]
[377698165,1754495441593,-247.0,0.00029304,2]
[377698166,1754495441605,-211.29,0.00029401,15]
[377698167,1754495441615,-211.29,0.00029421,15]
[377698168,1754495441624,-211.29,0.00029421,15]
[377698169,1754495441634,-211.29,0.00029501,15]
[377698170,1754495441643,-211.29,0.00029521,15]
[377698171,1754495441652,-211.29,0.00029521,15]
[377698172,1754495441663,-960.0,0.0002957,2]
[377698173,1754495441672,-1981.34,0.000296,7]
[377698174,1754495441683,-2278.88,0.000296,2]
[377698175,1754495441693,-2044.32611734,0.00029619,12]
[377698176,1754495441703,-3113.44749516,0.00029756,5]
[377698177,1754495441713,-4500.0,0.00029756,5]
[377698178,1754495441723,-5051.99,0.000298,7]
[377698179,1754495441732,-1060.0,0.00029832,2]
[377698180,1754495441742,-166.0,0.00029873,2]
[377698181,1754495441751,-151.0,0.000299,15]
[377698182,1754495441761,-160.0,0.00030046,2]
[377698183,1754495441771,-216.47163855,0.00030046,2]
[377698184,1754495441781,-231.78005385,0.00030046,2]
[377698185,1754495441791,-461.26544088,0.00030046,2]
[377698186,1754495441800,-160.0,0.00030046,2]
[377698187,1754495441810,-842.45170444,0.00030046,2]
[377698188,1754495441820,-160.0,0.00030046,2]
[377698189,1754495441830,-160.0,0.00030046,2]
[377698190,1754495441840,-160.0,0.00030046,2]
[377698191,1754495441851,-215.26769691,0.00030046,2]
[377698192,1754495441861,-1223.24,0.000301,7]
[377698193,1754495441871,-200.0,0.00030114,15]
[377698194,1754495441881,-200.0,0.00030114,15]
[377698195,1754495441890,-300.0,0.00030114,15]
[377698196,1754495441900,-531.36,0.00030137,30]
[377698197,1754495441910,-153.0,0.00030144,2]
[377698198,1754495441920,-153.0,0.00030144,2]
[377698199,1754495441930,-153.0,0.00030144,2]
[377698200,1754495441940,-153.0,0.00030144,2]
[377698201,1754495441949,-153.0,0.00030144,2]
[377698202,1754495441959,-153.0,0.00030144,2]
[377698203,1754495442109,-153.0,0.00030144,2]
[377698204,1754495442119,-153.0,0.00030144,2]
[377698205,1754495442129,-153.0,0.00030144,2]
[377698206,1754495442139,-153.0,0.00030149,2]
[377698207,1754495442149,-153.0,0.00030149,2]
[377698208,1754495442159,-153.0,0.00030149,2]
[377698209,1754495442168,-153.0,0.00030149,2]
[377698210,1754495442177,-153.0,0.00030149,2]
[377698211,1754495442187,-153.0,0.00030149,2]
[377698212,1754495442196,-153.0,0.00030149,2]
[377698213,1754495442207,-153.0,0.00030149,2]
[377698214,1754495442216,-153.0,0.00030149,2]
[377698215,1754495442226,-153.0,0.00030149,2]
[377698216,1754495442236,-153.0,0.00030149,2]
[377698217,1754495442246,-153.0,0.00030149,2]
[377698218,1754495442256,-153.0,0.00030149,2]